bitfinex-derivatives/quotes_ETHF0:USTF0_20251126
["timestamp","ask_amount","ask_price","bid_price","bid_amount"]
[1764169698287,0.00510093,2929.1,2928.5,0.00512155]
[1764169698598,0.00510093,2929.1,2928.8,3.6831997]
[1764169698995,0.00510093,2929.1,2928.8,0.2797]
[1764169699501,0.00249227,2929.5,2928.8,3.6831997]
[1764169700800,0.00249227,2929.5,2928.8,0.2797]
[1764169701094,0.17075,2929.3,2928.8,0.2797]
[1764169701803,0.17075,2929.2,2928.5,0.00512155]
[1764169702101,0.17323227,2929.5,2928.5,0.00512155]
[1764169702302,0.17074,2929.4,2928.5,0.00512155]
[1764169703303,0.17076,2929.1,2928.5,0.00512155]
[1764169703801,0.17076,2929.0,2928.5,0.00512155]
[1764169704707,0.17076,2929.0,2928.5,2.62880143]
[1764169705204,0.17076,2929.0,2928.5,0.00512155]
[1764169705407,0.17076,2929.0,2928.6,0.2797]
[1764169705806,0.17076,2929.0,2928.5,0.00512155]
[1764169706005,0.17077,2928.9,2928.5,0.00512155]
[1764169706504,0.89486221,2929.5,2928.6,2.90337988]
[1764169706701,0.17075,2929.3,2928.6,2.90337988]
[1764169707003,0.17078,2928.7,2928.5,0.00512155]
[1764169707400,0.89236994,2929.2,2928.6,2.90337988]
[1764169707600,0.3622,2928.6,2928.5,0.00512155]
[1764169708610,1.06313994,2928.9,2928.5,0.00512155]
[1764169708906,0.80127633,2928.8,2928.5,0.00512155]
[1764169709309,0.89236994,2928.7,2928.6,3.37157988]
[1764169709509,0.80127633,2928.7,2928.6,3.37157988]
[1764169709712,1.21293328,2929.1,2928.6,3.37157988]
[1764169710004,1.21293328,2929.0,2928.5,0.00512155]
[1764169710204,1.21293328,2929.0,2928.6,0.2797]
[1764169710508,1.21293328,2929.1,2929.0,0.4682]
[1764169710894,1.21293328,2929.4,2929.2,0.7479]
[1764169711099,1.21293328,2929.4,2928.6,0.2797]
[1764169712001,1.38368328,2929.2,2928.6,0.2797]
[1764169712204,0.3622,2928.6,2928.5,0.00512155]
[1764169712402,0.3622,2928.2,2927.2,2.9729417]
[1764169712608,0.17085,2927.6,2926.8,0.2797]
[1764169712806,1.21293328,2927.3,2926.8,0.2797]
[1764169713102,1.21293328,2927.5,2927.4,0.7479]
[1764169713307,0.00512155,2927.7,2927.4,0.7479]
[1764169713506,0.00842334,2927.7,2927.4,0.75087016]
[1764169714805,0.00842334,2927.7,2927.4,0.28267016]
[1764169715511,0.17085,2927.5,2927.4,0.00297016]
[1764169716210,0.00842334,2927.7,2927.4,0.29667016]
[1764169718306,0.00842334,2927.7,2927.4,0.00297016]
[1764169718621,1.0827841,2928.2,2928.0,0.2937]
[1764169719001,1.0827841,2928.2,2927.4,0.29667016]
[1764169719306,3.05348829,2929.0,2928.1,0.4613]
[1764169719307,1.81782531,2928.6,2928.1,0.4613]
[1764169719513,1.81782531,2928.7,2928.1,0.4613]
[1764169719713,1.82078039,2928.7,2928.1,0.4613]
[1764169720009,0.00295508,2928.7,2928.6,0.2937]
[1764169720708,0.00295508,2928.7,2928.0,0.2937]
[1764169721109,0.1708,2928.4,2927.4,0.29667016]
[1764169721316,0.17081,2928.3,2927.4,0.29667016]
[1764169721707,0.79719929,2928.2,2927.4,0.29667016]
[1764169721907,0.79719929,2928.1,2927.4,0.29667016]
[1764169722107,0.79719929,2928.0,2927.4,0.29667016]
[1764169722406,0.17081,2928.2,2927.4,0.29667016]
[1764169722609,0.96795746,2928.1,2927.4,0.29667016]
[1764169722806,0.17082,2928.1,2927.4,0.29667016]
[1764169723206,1.82078039,2928.7,2927.4,3.26961186]
[1764169723414,0.96786554,2928.6,2927.4,3.26961186]
[1764169723612,0.79707554,2928.5,2927.4,3.26961186]
[1764169724216,0.96786554,2928.5,2927.4,0.29667016]
[1764169724416,0.79707554,2928.4,2927.4,0.29667016]
[1764169725016,0.17081,2928.3,2927.4,0.29667016]
[1764169725415,0.00295508,2928.7,2927.4,0.29667016]
[1764169725618,0.796833,2928.6,2927.6,2.9729417]
[1764169725818,0.00295508,2928.7,2927.6,2.9729417]
[1764169726923,0.00295508,2928.7,2927.5,1.84223168]
[1764169726924,0.00295508,2928.7,2928.6,0.2937]
[1764169727119,0.17073,2929.6,2928.6,0.2937]
[1764169727422,0.7970191,2929.5,2928.8,0.00512155]
[1764169727715,0.7970191,2929.4,2928.8,0.00512155]
[1764169727921,0.7970191,2929.3,2928.8,0.00512155]
[1764169728120,0.17074,2929.5,2928.8,0.00512155]
[1764169728322,0.79701809,2929.4,2928.8,0.00512155]
[1764169728518,0.79701809,2929.3,2928.8,0.00512155]
[1764169728720,0.17074,2929.5,2928.8,0.00512155]
[1764169728922,0.79699419,2929.4,2928.8,0.00512155]
[1764169729122,0.17071,2930.0,2929.2,0.2937]
[1764169729329,0.79713092,2929.9,2929.2,0.2937]
[1764169729621,0.17071,2930.0,2929.2,0.2937]
[1764169729815,0.79696215,2929.9,2929.2,0.2937]
[1764169730519,0.17068,2930.5,2929.8,0.2937]
[1764169730724,0.79635052,2930.4,2929.8,0.29745969]
[1764169730924,0.79635052,2930.3,2929.8,0.29745969]
[1764169731223,0.79635052,2930.2,2929.8,0.29745969]
[1764169731436,0.79635052,2930.1,2929.8,0.29745969]
[1764169731725,0.17068,2930.5,2929.8,0.29745969]
[1764169731918,0.36,2929.9,2929.8,0.00375969]
[1764169732518,1.32639054,2929.9,2929.8,0.00375969]
[1764169732724,0.17072,2929.8,2928.8,0.00512155]
[1764169732925,0.17073,2929.6,2928.8,0.00512155]
[1764169733323,0.36,2928.9,2928.8,0.00512155]
[1764169733519,0.53077,2928.9,2928.8,0.00512155]
[1764169733722,0.17079,2928.6,2928.0,0.2937]
[1764169733923,0.17079,2928.6,2928.0,0.29809668]
[1764169734225,0.00365953,2928.9,2928.0,0.29809668]
[1764169734429,0.00365953,2928.9,2928.2,2.9729417]
[1764169734618,0.00512155,2928.8,2928.3,0.00512155]
[1764169734821,0.00512155,2928.8,2928.6,0.2937]
[1764169737625,0.00512155,2928.8,2928.3,0.00512155]
[1764169738220,0.00512155,2928.8,2928.6,0.2937]
[1764169739624,0.00512155,2928.8,2928.7,0.4613]
[1764169740026,0.00365953,2928.9,2928.8,0.4613]
[1764169740424,0.17072,2929.8,2928.8,0.4613]
[1764169741827,0.1707,2930.1,2928.8,0.4613]
[1764169742130,0.17071,2930.0,2928.8,0.4613]
[1764169742526,0.744,2930.6,2928.8,0.4613]
[1764169742832,0.17072,2929.8,2928.8,0.4613]
[1764169743130,0.1707,2930.1,2928.8,0.4613]
[1764169743329,0.79549354,2930.0,2928.8,0.4613]
[1764169743530,0.17071,2930.0,2928.8,0.4613]
[1764169744830,0.17071,2929.9,2928.8,0.4613]
[1764169745342,0.17069,2930.3,2929.2,3.2598417]
[1764169745631,1.81782531,2931.1,2929.8,0.2869]
[1764169745830,0.9668505,2930.9,2930.1,0.00512155]
[1764169746030,0.17066,2930.9,2930.1,0.0093684]
[1764169746232,0.17067,2930.7,2930.1,0.0093684]
[1764169747336,5.41593658,2931.9,2931.6,0.0969]
[1764169747337,0.33355912,2931.9,2931.6,0.0969]
[1764169747628,0.2817,2932.3,2931.2,3.49423168]
[1764169747829,0.2817,2932.3,2931.5,0.00512155]
[1764169748044,0.2817,2932.3,2931.6,2.9729417]
[1764169748225,0.2817,2933.0,2931.6,4.98578338]
[1764169748428,0.2817,2933.0,2932.6,2.9729417]
[1764169748732,0.2817,2933.0,2932.6,2.97607309]
[1764169748933,0.2817,2933.0,2932.6,0.00313139]
[1764169749232,0.17055,2932.7,2931.5,0.00512155]
[1764169749434,0.2817,2931.6,2931.5,0.00512155]
[1764169749929,0.2817,2932.3,2931.5,0.00512155]
[1764169750132,0.28410276,2932.3,2931.5,0.00829303]
[1764169752033,0.2817,2931.6,2931.5,0.00829303]
[1764169752236,0.2817,2930.9,2930.4,1.2125606]
[1764169752428,0.2817,2930.9,2929.7,1.2125606]
[1764169752624,0.2817,2931.6,2930.5,2.9729417]
[1764169753232,0.2817,2931.6,2930.8,0.00512155]
[1764169753233,0.2817,2930.9,2930.8,0.00512155]
[1764169754037,0.2817,2930.9,2930.8,2.155e-05]
[1764169754334,0.2817,2930.9,2930.5,0.00326666]
[1764169755035,0.2817,2930.9,2930.3,0.19045]
[1764169755242,0.45236,2930.9,2930.3,0.19557155]
[1764169755639,0.2817,2930.9,2929.1,1.2125606]
[1764169755938,0.2817,2930.9,2929.1,0.00375267]
[1764169756437,0.17071,2930.0,2929.1,0.00375267]
[1764169756633,0.17345392,2930.0,2929.1,0.00375267]
[1764169756836,0.2817,2929.5,2929.3,0.00512155]
[1764169757042,0.00512155,2929.7,2929.3,0.00512155]
[1764169757339,0.2817,2930.9,2929.3,0.00512155]
[1764169758137,0.00512155,2930.4,2929.3,0.00512155]
[1764169758331,1.49135603,2932.3,2930.3,2.9729417]
[1764169758536,1.49135603,2932.3,2929.5,1.2125606]
[1764169758537,0.2817,2932.3,2931.5,2.9729417]
[1764169758839,0.2817,2932.3,2931.1,2.9729417]
[1764169759043,0.2817,2932.3,2930.6,4.1855023]
[1764169759347,0.2817,2931.6,2931.2,0.00512155]
[1764169759933,0.00512155,2931.7,2931.2,0.00512155]
[1764169760140,0.2844434,2932.3,2931.3,6.0]
[1764169760446,0.2844434,2932.3,2931.2,0.00512155]
[1764169760644,0.2844434,2932.3,2931.5,2.9729417]
[1764169761039,0.2844434,2932.3,2931.2,0.00512155]
[1764169762043,0.2817,2931.6,2931.2,0.00512155]
[1764169764338,0.2844434,2932.3,2931.2,0.00512155]
[1764169765042,0.4550234,2932.3,2931.2,0.00512155]
[1764169765246,0.2817,2931.6,2931.2,0.00512155]
[1764169767146,0.2817,2930.9,2930.6,0.00260216]
[1764169768456,0.2817,2930.9,2930.5,0.00512155]
[1764169769460,0.2817,2930.9,2930.5,4.09142709]
[1764169770560,0.2817,2930.9,2930.5,0.00830431]
[1764169772162,0.45235,2930.9,2930.5,0.00830431]
[1764169772350,0.2817,2930.9,2929.5,4.59973595]
[1764169772555,0.2817,2929.5,2929.4,1.2125606]
[1764169772761,0.2817,2929.5,2928.9,1.2125606]
[1764169772959,0.2817,2929.5,2928.7,1.2125606]
[1764169773257,0.2817,2929.5,2929.0,3.38717535]
[1764169773455,0.00851728,2929.5,2929.0,3.3956702]
[1764169773650,0.29021728,2929.5,2929.0,3.3956702]
[1764169774960,0.29021728,2929.5,2929.0,0.00849485]
[1764169776063,0.00851728,2929.5,2929.2,3.38717535]
[1764169776264,0.2817,2930.2,2929.2,3.38717535]
[1764169777363,0.00512155,2930.0,2929.2,3.38717535]
[1764169778570,0.2792,2929.8,2929.0,1.22105545]
[1764169778759,0.2792,2929.8,2929.0,0.00849485]
[1764169779363,0.2792,2929.2,2929.0,0.00849485]
[1764169780165,0.2792,2929.8,2929.0,0.00849485]
[1764169782068,0.2792,2929.2,2929.0,0.00849485]
[1764169783471,0.2792,2929.8,2929.0,0.00849485]
[1764169783670,0.2792,2929.8,2929.4,2.62292009]
[1764169783867,0.00512155,2930.0,2929.4,2.62292009]
[1764169784067,0.00512155,2930.0,2929.8,2.62292009]
[1764169786074,0.0041369,2930.2,2929.9,0.25]
[1764169787269,0.0041369,2930.2,2929.8,2.62292009]
[1764169787774,0.0041369,2930.2,2929.5,1.2125606]
[1764169788280,0.0041369,2930.2,2929.8,2.62292009]
[1764169788671,0.0041369,2930.2,2930.1,0.25]
[1764169789069,0.0041369,2930.2,2929.8,2.62292009]
[1764169789878,0.0041369,2930.2,2930.1,0.25]
[1764169790576,0.2817,2930.9,2930.1,0.25]
[1764169790577,0.2817,2930.9,2930.1,0.4207]
[1764169790771,0.2817,2930.9,2930.3,2.62292009]
[1764169791665,0.28367367,2930.9,2930.3,2.62292009]
[1764169793275,0.28367367,2930.9,2930.3,3.83548069]
[1764169793470,0.28367367,2930.9,2930.7,2.62292009]
[1764169793873,0.00197367,2930.9,2930.8,0.25]
[1764169798177,0.00197367,2930.9,2930.7,2.62292009]
[1764169798976,0.00197367,2930.9,2930.8,0.25]
[1764169799182,0.2792,2931.6,2930.9,0.25]
[1764169800379,0.2792,2931.6,2931.2,2.62292009]
[1764169800576,0.2792,2931.6,2931.5,0.25]
[1764169800879,0.2792,2931.6,2931.2,0.00434963]
[1764169801077,0.2792,2931.6,2930.5,0.00512155]
[1764169801078,0.4539,2930.8,2930.5,0.00512155]
[1764169801383,0.2792,2931.6,2930.9,0.2543]
[1764169801683,0.2792,2931.6,2931.0,0.17065]
[1764169801879,0.2792,2931.6,2931.1,2.62292009]
[1764169802083,0.00372416,2931.6,2931.5,2.87722009]
[1764169802379,0.2792,2932.5,2931.5,3.04784009]
[1764169803183,0.2792,2932.5,2931.5,2.87722009]
[1764169803771,0.2792,2932.5,2931.5,0.2543]
[1764169804077,0.17057,2932.3,2931.1,0.00404324]
[1764169804581,0.44978,2932.2,2931.1,0.00404324]
[1764169804777,0.2792,2931.6,2931.1,0.00404324]
[1764169804983,0.4539,2930.7,2930.5,0.00512155]
[1764169805182,0.2792,2931.0,2930.5,0.00512155]
[1764169805481,0.4828,2930.6,2930.5,0.00512155]
[1764169806181,0.48626233,2930.6,2930.5,0.00820856]
[1764169808277,0.48626233,2930.6,2930.5,8.56e-06]
[1764169808786,0.47356233,2930.6,2930.5,8.56e-06]
[1764169808983,0.00346233,2930.6,2930.5,8.56e-06]
[1764169809188,0.47356233,2930.6,2930.5,8.56e-06]
[1764169810382,0.4701,2929.4,2929.3,1.84223168]
[1764169810574,0.2948,2929.8,2928.5,1.84223168]
[1764169810575,0.2948,2929.2,2928.5,1.84223168]
[1764169810775,0.2948,2929.2,2928.3,1.84223168]
[1764169811078,0.2948,2929.2,2928.4,2.62292009]
[1764169811382,0.2948,2929.2,2928.5,0.00512155]
[1764169811383,0.00512155,2929.1,2928.5,0.00512155]
[1764169811583,0.2948,2928.6,2928.5,0.00512155]
[1764169811884,0.00512155,2929.1,2928.5,0.27262155]
[1764169812678,0.00512155,2929.1,2929.0,0.2675]
[1764169812879,0.00512155,2929.1,2928.5,0.00512155]
[1764169814480,0.00512155,2929.1,2929.0,0.2675]
[1764169815282,0.00512155,2929.1,2928.5,0.00512155]
[1764169816185,0.00512155,2929.1,2929.0,0.2675]
[1764169816383,0.00512155,2929.1,2928.5,0.00512155]
[1764169817487,0.7649,2928.6,2928.5,0.00512155]
[1764169817881,0.00512155,2929.1,2928.5,0.27262155]
[1764169818691,0.2948,2929.8,2929.0,0.2675]
[1764169819886,0.00512155,2929.7,2929.0,0.2675]
[1764169820284,0.00512155,2929.7,2928.5,0.00512155]
[1764169823599,0.17585155,2929.7,2928.5,0.00512155]
[1764169824183,0.17073,2929.6,2928.5,0.00512155]
[1764169825187,0.2948,2928.6,2928.5,0.00512155]
[1764169825391,0.2948,2929.2,2928.5,0.27262155]
[1764169826198,0.2948,2929.2,2928.6,2.62292009]
[1764169826892,0.2948,2929.2,2928.5,0.00512155]
[1764169827295,0.00512155,2929.7,2928.5,0.00512155]
[1764169827296,0.00512155,2929.7,2929.1,0.2675]
[1764169827693,0.00512155,2929.7,2929.2,2.62292009]
[1764169828097,0.00346233,2930.6,2929.6,2.89042009]
[1764169828394,0.00346233,2930.6,2929.6,0.2675]
[1764169828586,0.2948,2929.8,2929.2,0.17075]
[1764169828789,0.2948,2929.8,2929.1,2.62292009]
[1764169828990,0.2948,2929.8,2928.7,4.46515177]
[1764169829192,0.2948,2929.8,2928.6,2.62292009]
[1764169829398,0.2948,2929.8,2928.5,0.00512155]
[1764169830597,0.46552,2929.8,2928.5,0.00512155]
[1764169830900,0.17072,2929.7,2928.5,0.00512155]
[1764169831096,0.17072,2929.7,2928.6,2.62292009]
[1764169831394,0.2948,2929.8,2928.6,2.62292009]
[1764169832598,0.2948,2929.8,2928.5,0.17591155]
[1764169832996,0.2948,2929.8,2928.8,2.97301679]
[1764169833192,0.2948,2929.8,2928.9,1.21735688]
[1764169833901,0.7649,2929.0,2928.7,1.21735688]
[1764169834097,0.2948,2929.5,2928.7,1.21735688]
[1764169834303,0.2948,2929.5,2928.8,1.21735688]
[1764169834500,0.2948,2929.5,2928.9,1.21735688]
[1764169834697,0.2948,2929.8,2929.4,0.4747]
[1764169838508,0.4645,2929.3,2929.2,1.21735688]
[1764169838708,0.2768,2929.5,2929.2,1.21735688]
[1764169839613,0.2948,2929.8,2929.4,0.4769]
[1764169840311,0.2948,2929.8,2929.4,1.69425688]
[1764169840607,0.7413,2929.5,2929.3,1.21735688]
[1764169840910,0.4645,2929.4,2929.3,1.21735688]
[1764169841710,0.4645,2929.1,2929.0,1.21735688]
[1764169842406,0.4645,2929.1,2928.9,1.21735688]
[1764169842609,0.7413,2929.0,2928.9,1.21735688]
[1764169842811,0.7413,2929.0,2928.8,1.84223168]
[1764169843002,0.2768,2929.5,2928.9,0.4769]
[1764169843198,0.2768,2929.5,2928.9,1.22614816]
[1764169843607,0.7413,2929.0,2928.9,1.22614816]
[1764169844113,0.33136594,2929.0,2928.9,1.22614816]
[1764169844406,0.2768,2929.5,2928.9,1.22614816]
[1764169845109,0.7413,2929.0,2928.9,1.22614816]
[1764169845611,0.7413,2929.0,2928.8,1.22614816]
[1764169846013,0.4645,2928.9,2928.8,1.22614816]
[1764169846307,0.2768,2929.5,2928.8,1.70304816]
[1764169846507,0.2948,2929.8,2929.3,1.22614816]
[1764169846707,0.2948,2929.8,2929.3,0.4769]
[1764169846908,0.2768,2930.0,2929.7,0.4769]
[1764169847406,0.2768,2930.0,2929.5,1.22614816]
[1764169847612,0.4645,2929.6,2929.4,1.22614816]
[1764169848218,0.2768,2930.0,2929.5,0.4769]
[1764169848419,0.2768,2930.0,2929.5,1.70304816]
[1764169848606,0.2768,2930.0,2929.6,1.22614816]
[1764169848812,0.4645,2929.7,2929.6,1.22614816]
[1764169849110,0.2768,2930.0,2929.6,1.22614816]
[1764169849311,0.2768,2930.0,2929.5,1.22614816]
[1764169849508,0.2768,2930.0,2929.4,1.84223168]
[1764169849509,0.2768,2930.0,2929.6,1.22614816]
[1764169849714,0.4645,2929.7,2929.6,1.22614816]
[1764169850012,0.4645,2929.6,2929.4,1.22614816]
[1764169850821,0.2768,2930.0,2929.5,0.4769]
[1764169851118,0.2768,2930.0,2929.4,1.22614816]
[1764169851514,0.2768,2930.0,2929.5,1.22614816]
[1764169853319,0.4645,2929.6,2929.4,1.22614816]
[1764169853510,0.7413,2929.5,2929.4,1.22614816]
[1764169853714,0.4645,2929.4,2929.3,1.22614816]
[1764169853911,0.91501085,2930.2,2929.5,0.2832]
[1764169854214,0.2948,2930.4,2929.6,4.81524847]
[1764169854418,0.00346233,2930.6,2930.5,0.4769]
[1764169854613,1.21333947,2931.3,2930.5,0.47966994]
[1764169854814,1.38395947,2931.4,2930.5,0.47966994]
[1764169855212,0.17062,2931.4,2930.5,0.47966994]
[1764169855418,0.17063,2931.3,2930.5,0.47966994]
[1764169855820,0.28005172,2931.0,2930.5,0.00276994]
[1764169856014,0.4645,2930.6,2930.5,0.00276994]
[1764169857716,0.28005172,2931.0,2930.5,0.00276994]
[1764169858718,0.4645,2930.6,2930.5,0.00276994]
[1764169861122,0.63518,2930.4,2930.3,0.00512155]
[1764169861429,0.2768,2930.5,2929.4,1.22587021]
[1764169861430,0.4645,2929.8,2929.4,1.22587021]
[1764169861818,0.4645,2929.5,2929.4,1.22587021]
[1764169862023,0.4645,2929.4,2929.1,1.22587021]
[1764169862219,0.63525,2929.2,2929.1,1.22842713]
[1764169862524,0.4645,2928.2,2928.0,1.22587021]
[1764169862729,0.2768,2928.6,2927.9,1.22587021]
[1764169862923,0.4645,2927.9,2927.8,1.22587021]
[1764169863122,0.4645,2927.9,2927.6,1.22587021]
[1764169863318,0.4645,2927.6,2927.1,1.22587021]
[1764169863528,0.4645,2927.6,2926.7,1.22587021]
[1764169863727,0.28192155,2927.4,2926.9,0.00512155]
[1764169864429,0.00512155,2927.4,2926.9,0.00512155]
[1764169864732,0.4645,2927.0,2926.9,0.00512155]
[1764169865123,0.28192155,2927.4,2926.9,0.00512155]
[1764169866228,0.4892,2927.0,2926.9,0.00512155]
[1764169867926,0.28192155,2927.4,2926.9,0.00512155]
[1764169868335,0.4856,2927.0,2926.9,0.00512155]
[1764169868537,0.28192155,2927.4,2926.9,0.00512155]
[1764169869429,0.00512155,2927.4,2927.3,0.4536]
[1764169869827,0.00512155,2927.4,2926.9,0.00512155]
[1764169869828,0.4856,2927.0,2926.9,0.00512155]
[1764169870740,0.4856,2927.0,2926.9,2.155e-05]
[1764169873435,0.29032155,2927.4,2926.9,2.155e-05]
[1764169874840,0.29032155,2927.4,2927.3,0.4536]
[1764169874841,0.00512155,2927.4,2927.3,0.4536]
[1764169875045,0.00333734,2927.6,2926.9,2.155e-05]
[1764169876040,0.00512155,2927.5,2926.9,2.155e-05]
[1764169876250,0.4856,2927.0,2926.9,2.155e-05]
[1764169876652,0.00512155,2927.5,2927.4,0.4536]
[1764169876849,0.00512155,2927.5,2926.9,2.155e-05]
[1764169877358,0.00512155,2927.5,2926.9,2.97303834]
[1764169877559,0.00333734,2927.6,2927.5,0.4536]
[1764169877761,0.44759,2928.6,2927.5,0.4536]
[1764169877973,0.44759,2928.6,2927.0,0.17088]
[1764169878651,0.0051,2928.1,2927.1,0.17087]
[1764169878856,0.00810372,2928.1,2928.0,0.4536]
[1764169879057,0.2768,2928.6,2928.0,0.4536]
[1764169879261,0.44755,2929.2,2928.0,0.4536]
[1764169880164,0.0032792,2929.2,2928.5,0.17079]
[1764169880366,0.2852,2929.8,2929.1,0.4536]
[1764169880567,0.45589,2930.4,2929.1,0.4536]
[1764169880766,0.45589,2930.4,2929.2,0.275]
[1764169880966,0.2852,2930.4,2928.6,0.14282155]
[1764169881359,0.17071,2930.0,2928.6,0.14663544]
[1764169881669,0.17073,2929.6,2928.6,0.00893544]
[1764169882361,0.2852,2929.8,2928.6,0.14663544]
[1764169882663,0.2852,2929.8,2928.6,0.00893544]
[1764169882966,0.17073,2929.6,2928.6,0.00893544]
[1764169883368,0.17073,2929.6,2928.6,0.14663544]
[1764169884069,0.17073,2929.6,2928.6,0.00893544]
[1764169884655,0.2852,2929.8,2928.6,0.14663544]
[1764169886360,0.2852,2930.4,2928.7,0.17078]
[1764169886558,0.2852,2930.4,2929.0,2.97301679]
[1764169886873,0.2852,2930.4,2929.2,0.275]
[1764169887066,0.2852,2931.0,2929.5,2.97301679]
[1764169887467,0.45585,2931.0,2929.5,2.97301679]
[1764169888370,0.45585,2931.0,2929.6,0.17073]
[1764169888773,0.17066,2930.9,2929.6,0.17073]
[1764169888966,0.17066,2930.9,2929.5,2.97301679]
[1764169890263,0.2852,2931.0,2930.1,2.97301679]
[1764169890464,0.17062,2931.5,2930.4,0.2832]
[1764169890769,0.17064,2931.2,2930.3,0.00512155]
[1764169891073,0.17064,2931.2,2930.4,0.2832]
[1764169891773,0.2852,2931.6,2930.4,0.2832]
[1764169892071,0.17062,2931.5,2930.3,0.00512155]
[1764169892973,0.17062,2931.5,2930.4,0.2832]
[1764169894372,0.17062,2931.5,2930.3,2.62576081]
[1764169894576,0.17062,2931.5,2930.4,0.2832]
[1764169894773,0.17062,2931.5,2930.7,2.62063926]
[1764169895074,0.4856,2930.8,2930.7,0.00412754]
[1764169895276,0.65626,2930.8,2930.7,2.754e-05]
[1764169895472,0.44148,2930.4,2929.3,2.62063926]
[1764169895670,0.44148,2930.4,2929.7,2.62063926]
[1764169895983,0.44148,2930.4,2929.3,2.62063926]
[1764169896475,0.00512155,2930.1,2929.6,0.00512155]
[1764169896772,0.17071,2929.9,2929.6,0.00512155]
[1764169897178,0.00512155,2930.1,2930.0,0.4599]
[1764169897679,0.00512155,2930.1,2929.6,0.00512155]
[1764169899373,0.00512155,2930.1,2930.0,0.4599]
[1764169899682,0.00512155,2930.1,2929.6,0.00512155]
[1764169904673,0.64662,2929.7,2929.6,0.00512155]
[1764169905783,0.4759,2929.4,2929.3,0.00257125]
[1764169912280,0.4759,2929.2,2929.1,0.00512155]
[1764169912487,0.64665,2929.2,2928.1,1.84223168]
[1764169912880,0.64665,2929.2,2928.0,2.12543168]
[1764169913078,0.17078,2928.8,2928.0,2.12543168]
[1764169913282,0.17078,2928.8,2928.0,0.00409591]
[1764169913482,0.4759,2928.2,2928.1,0.00512155]
[1764169913681,0.06853277,2928.2,2928.1,0.00512155]
[1764169914792,0.4759,2928.1,2927.0,1.97993168]
[1764169915085,0.2708,2928.0,2927.0,0.1377]
[1764169915984,0.2708,2928.0,2927.2,0.00512155]
[1764169916487,0.00268284,2928.2,2927.2,0.00512155]
[1764169916682,0.00268284,2928.2,2927.2,2.62576081]
[1764169917187,0.00268284,2928.2,2927.2,0.00512155]
[1764169920595,0.44162,2928.0,2927.2,0.00512155]
[1764169921191,2.89143926,2928.0,2927.2,0.00512155]
[1764169921397,0.64678,2927.1,2927.0,1e-08]
[1764169921594,3.26741926,2927.1,2927.0,1e-08]
[1764169921903,0.64678,2927.1,2927.0,1e-08]
[1764169922196,0.4759,2927.1,2927.0,1e-08]
[1764169922385,0.2708,2927.5,2927.0,1e-08]
[1764169922587,0.17085,2927.6,2927.0,1e-08]
[1764169923293,0.2708,2928.0,2927.0,1e-08]
[1764169925602,0.00268284,2928.2,2927.0,0.17088001]
[1764169927292,0.00268284,2928.2,2927.4,0.146]
[1764169927495,0.00268284,2928.2,2927.0,0.17088001]
[1764169928710,0.00268284,2928.2,2927.4,0.2912]
[1764169928896,0.00268284,2928.2,2928.1,0.4567]
[1764169929700,0.00512155,2928.4,2928.3,0.4567]
[1764169929900,0.00512155,2928.4,2927.4,0.46206]
[1764169930504,0.00512155,2928.4,2927.5,0.17085]
[1764169930711,0.00755469,2928.4,2928.3,0.4567]
[1764169931507,0.2816,2929.5,2928.3,0.4567]
[1764169932503,0.00512155,2929.2,2928.6,0.00512155]
[1764169934407,0.00512155,2929.2,2928.6,0.29152155]
[1764169934908,0.00512155,2929.2,2929.1,0.4567]
[1764169935111,0.00302871,2929.5,2929.4,0.4567]
[1764169936211,0.2816,2930.4,2929.6,0.4567]
[1764169936418,2.90223926,2930.4,2929.6,0.4567]
[1764169936715,3.07292926,2930.4,2929.2,0.2912]
[1764169936905,3.01764926,2930.0,2929.1,0.00429353]
[1764169937101,0.39701,2930.0,2929.1,0.00429353]
[1764169937305,0.00512155,2929.8,2929.1,0.00429353]
[1764169940906,0.457,2929.2,2929.1,0.00429353]
[1764169941114,0.457,2928.7,2928.6,0.00512155]
[1764169942112,0.457,2928.7,2928.6,0.00879905]
[1764169944921,0.17079,2928.6,2927.2,2.1209733]
[1764169945426,0.2816,2928.5,2927.2,2.1209733]
[1764169945815,0.2816,2929.0,2928.1,2.62063926]
[1764169946013,0.00512155,2928.8,2928.3,0.00512155]
[1764169946220,0.457,2928.4,2928.3,0.00512155]
[1764169946726,0.17590155,2928.8,2928.3,0.00512155]
[1764169947826,0.457,2928.4,2928.3,0.00512155]
[1764169948230,0.00512155,2928.8,2928.4,0.4567]
[1764169948528,0.00512155,2928.8,2928.7,0.4567]
[1764169948926,0.40031122,2930.0,2928.7,0.4567]
[1764169949527,2.62063926,2929.7,2928.7,0.4567]
[1764169949721,0.17074,2929.5,2928.7,0.4567]
[1764169949930,0.17586155,2929.4,2928.7,0.4567]
[1764169951530,0.17586155,2929.4,2928.3,0.00512155]
[1764169951733,0.00512155,2929.4,2928.3,0.00512155]
[1764169952038,0.45235,2929.2,2928.3,0.00512155]
[1764169954134,0.00512155,2929.4,2928.3,0.00512155]
[1764169954332,0.00512155,2929.4,2929.3,0.4567]
[1764169954533,0.00330122,2930.0,2929.9,0.4567]
[1764169955434,0.27720122,2930.0,2929.1,1.84223168]
[1764169955836,0.27720122,2930.0,2929.0,2.12833168]
[1764169956438,0.44791122,2930.0,2929.0,0.2861]
[1764169956635,0.17071,2929.9,2928.9,1.707]
[1764169956843,0.17072,2929.8,2928.9,1.707]
[1764169957039,0.17072,2929.8,2928.5,2.13343168]
[1764169957234,0.27720122,2930.0,2928.7,1.84223168]
[1764169958240,0.44791122,2930.0,2928.7,1.84223168]
[1764169958746,0.93913877,2929.9,2928.6,1.84223168]
[1764169958947,0.17071,2929.9,2928.6,1.84223168]
[1764169959146,0.17072,2929.8,2928.6,1.84223168]
[1764169959446,0.93914027,2929.7,2928.5,0.2912]
[1764169959633,0.76842027,2929.6,2928.5,0.2912]
[1764169960037,0.17074,2929.5,2928.5,0.2912]
[1764169960240,0.93929594,2929.4,2928.5,0.2912]
[1764169960438,0.17074,2929.4,2928.3,0.00512155]
[1764169960643,0.2739,2929.2,2928.3,0.00512155]
[1764169963040,0.17075,2929.3,2928.3,0.00512155]
[1764169964149,0.17075,2929.3,2928.3,1.84735323]
[1764169965349,0.17075,2929.3,2928.3,0.00512155]
[1764169966248,0.17075,2929.3,2928.3,1.84735323]
[1764169967244,0.17077,2929.0,2928.3,0.00512155]
[1764169967549,0.4733,2928.4,2928.3,0.00512155]